bitfinex-derivatives/quotes_BTCF0:USTF0_20250505
["timestamp","ask_amount","ask_price","bid_price","bid_amount"]
[1746457581298,0.0319,93779.0,93771.0,0.0533237]
[1746457581502,0.0326,93783.0,93782.0,0.2132712]
[1746457581700,0.0326,93783.0,93769.0,0.067]
[1746457581892,0.5740962,93771.0,93770.0,0.0333]
[1746457582093,0.5740962,93771.0,93770.0,0.13224]
[1746457582301,0.3608,93771.0,93770.0,0.3455384]
[1746457582499,0.5740962,93771.0,93770.0,0.3455384]
[1746457582905,0.4254,93771.0,93770.0,0.3455384]
[1746457583500,0.6386962,93771.0,93770.0,0.13224]
[1746457583704,0.6386962,93771.0,93770.0,0.3455384]
[1746457584206,0.6886962,93771.0,93770.0,0.13224]
[1746457584503,0.6916962,93771.0,93770.0,0.13324]
[1746457584701,0.6916962,93771.0,93770.0,0.3465384]
[1746457584905,0.4784,93771.0,93770.0,0.3465384]
[1746457585094,0.4459,93771.0,93770.0,0.2265384]
[1746457585296,0.0371,93771.0,93770.0,0.2325384]
[1746457585499,0.005,93771.0,93770.0,0.5933384]
[1746457585700,0.0015,93785.0,93770.0,0.38004]
[1746457585902,0.0015,93785.0,93784.0,0.5740666]
[1746457586111,0.0015,93785.0,93784.0,0.6940666]
[1746457586705,0.0015,93785.0,93784.0,0.7576666]
[1746457587296,0.2147643,93785.0,93784.0,0.12]
[1746457587611,0.2132962,93771.0,93770.0,0.01624]
[1746457587804,0.7240962,93771.0,93770.0,0.01624]
[1746457588103,0.617444,93771.0,93767.0,0.12]
[1746457588307,0.213303,93768.0,93767.0,0.12]
[1746457589204,0.21329134,93768.0,93759.0,0.266646]
[1746457589406,0.6741257,93760.0,93759.0,0.266646]
[1746457589601,0.7241257,93760.0,93759.0,0.266646]
[1746457589797,0.6201257,93760.0,93759.0,0.266646]
[1746457590008,0.7201257,93760.0,93759.0,0.2133157]
[1746457590208,0.6201257,93760.0,93759.0,0.2133157]
[1746457590409,0.7201257,93760.0,93759.0,0.2133157]
[1746457590707,0.6852257,93760.0,93759.0,0.2173157]
[1746457590913,0.6892212,93760.0,93759.0,0.2173157]
[1746457591300,0.4419,93760.0,93759.0,0.2173157]
[1746457591504,0.3618,93760.0,93759.0,0.2173157]
[1746457591696,0.003,93760.0,93759.0,0.2173157]
[1746457591895,0.003,93760.0,93759.0,0.3137157]
[1746457592099,0.005,93760.0,93759.0,0.4357157]
[1746457592600,0.005,93760.0,93759.0,0.5423717]
[1746457595009,0.005,93760.0,93759.0,0.4357157]
[1746457595807,0.2142626,93786.0,93784.0,0.2132666]
[1746457596015,0.28266,93785.0,93784.0,0.2132666]
[1746457596321,0.2157,93785.0,93784.0,0.2132666]
[1746457596605,0.0834,93785.0,93784.0,0.2132666]
[1746457596806,0.1834,93785.0,93775.0,0.0533213]
[1746457597008,0.2132825,93778.0,93777.0,0.2132797]
[1746457597209,0.2132825,93778.0,93777.0,0.12]
[1746457597400,0.7240825,93778.0,93777.0,0.12]
[1746457597607,0.7878825,93778.0,93777.0,0.12]
[1746457598213,0.2133144,93763.0,93762.0,0.2666384]
[1746457598413,0.2113144,93763.0,93762.0,0.2666384]
[1746457599005,0.2646562,93760.0,93759.0,0.2133235]
[1746457599205,0.2133257,93760.0,93759.0,0.2133235]
[1746457599706,0.2113257,93760.0,93759.0,0.2133235]
[1746457599904,0.2113257,93760.0,93758.0,0.0658]
[1746457599905,0.0335,93763.0,93758.0,0.0658]
[1746457600109,0.2153154,93763.0,93762.0,0.2133166]
[1746457600912,0.002,93763.0,93762.0,0.2133166]
[1746457601114,0.002,93763.0,93762.0,0.3333166]
[1746457601415,0.002,93763.0,93762.0,0.4399686]
[1746457602115,0.002,93763.0,93762.0,0.3333166]
[1746457603005,0.005,93763.0,93762.0,0.3333166]
[1746457603616,0.003,93763.0,93762.0,0.3333166]
[1746457604218,0.005,93763.0,93762.0,0.3333166]
[1746457604515,0.005,93763.0,93762.0,0.4399686]
[1746457605215,0.0015,93785.0,93784.0,0.2132666]
[1746457606114,0.0015,93785.0,93784.0,0.3949666]
[1746457606512,0.0015,93785.0,93784.0,0.7557666]
[1746457606816,0.0035,93785.0,93784.0,0.7557666]
[1746457607407,0.2167643,93785.0,93784.0,0.4808]
[1746457607611,0.6795643,93785.0,93784.0,0.12]
[1746457607811,0.7295643,93785.0,93784.0,0.12]
[1746457608312,0.15,93780.0,93779.0,0.213278]
[1746457608513,0.3663,93785.0,93781.0,0.0533178]
[1746457608710,0.3132666,93784.0,93783.0,0.2132689]
[1746457609114,0.1,93784.0,93783.0,0.2432689]
[1746457609312,0.3132666,93784.0,93783.0,0.2432689]
[1746457609818,0.1,93784.0,93783.0,0.2432689]
[1746457610020,0.0035,93785.0,93784.0,0.2132666]
[1746457610219,0.0035,93785.0,93784.0,0.2436666]
[1746457610420,0.0035,93785.0,93784.0,0.2747666]
[1746457611213,0.0035,93785.0,93784.0,0.3947666]
[1746457611515,0.2147643,93785.0,93784.0,0.3643666]
[1746457611718,0.3167643,93785.0,93784.0,0.12]
[1746457612115,0.2132757,93780.0,93779.0,0.2132771]
[1746457612312,0.1,93780.0,93777.0,0.2132797]
[1746457612522,0.2132833,93778.0,93777.0,0.2666]
[1746457613313,0.2132848,93776.0,93775.0,0.5740859]
[1746457613918,0.0303,93777.0,93776.0,0.2132848]
[1746457614110,0.2935825,93777.0,93776.0,0.2132848]
[1746457614722,0.0803,93777.0,93776.0,0.2132848]
[1746457615308,0.0803,93777.0,93776.0,0.2451848]
[1746457615516,0.002,93778.0,93777.0,0.2132825]
[1746457615919,0.002,93778.0,93777.0,0.2775825]
[1746457616213,0.002,93778.0,93777.0,0.3975825]
[1746457617221,0.002,93778.0,93777.0,0.5042185]
[1746457617429,0.0015,93785.0,93784.0,0.2132666]
[1746457617613,0.0015,93785.0,93784.0,0.5740666]
[1746457618225,0.0015,93785.0,93784.0,0.6940666]
[1746457618425,0.0015,93785.0,93784.0,0.7578666]
[1746457618720,0.2970643,93785.0,93784.0,0.4808]
[1746457618925,0.4640643,93785.0,93784.0,0.12]
[1746457619118,0.2132802,93778.0,93777.0,0.213282]
[1746457619315,0.15,93778.0,93777.0,0.213282]
[1746457619923,0.2147,93778.0,93777.0,0.213282]
[1746457620124,0.4279802,93778.0,93777.0,0.213282]
[1746457620326,0.1147,93778.0,93777.0,0.213282]
[1746457620522,0.2147,93778.0,93777.0,0.213282]
[1746457620725,0.4279802,93778.0,93777.0,0.213282]
[1746457620928,0.2147,93778.0,93777.0,0.213282]
[1746457621127,0.2147,93778.0,93777.0,0.333282]
[1746457621515,0.4279802,93778.0,93777.0,0.333282]
[1746457621724,0.4319802,93778.0,93777.0,0.333282]
[1746457622132,0.4319802,93778.0,93777.0,0.213282]
[1746457622427,0.2187,93778.0,93777.0,0.213282]
[1746457622825,0.4319802,93778.0,93777.0,0.213282]
[1746457623329,0.2187,93778.0,93777.0,0.333282]
[1746457625031,0.2187,93778.0,93777.0,0.365782]
[1746457625231,0.4319802,93778.0,93777.0,0.365782]
[1746457625422,0.2187,93778.0,93777.0,0.365782]
[1746457625627,0.4319802,93778.0,93777.0,0.12]
[1746457625829,0.4319802,93778.0,93777.0,0.3332825]
[1746457626533,0.2187,93778.0,93777.0,0.3332825]
[1746457626828,0.0863,93778.0,93777.0,0.3332825]
[1746457627336,1.01037138,93778.0,93740.0,0.3608]
[1746457627529,0.1,93748.0,93747.0,0.2133508]
[1746457627925,0.05,93748.0,93745.0,0.0533383]
[1746457628128,0.0302,93747.0,93746.0,0.2776531]
[1746457628327,0.0302,93747.0,93746.0,0.0643]
[1746457628522,0.2133531,93746.0,93745.0,0.12]
[1746457628732,0.3446531,93746.0,93745.0,0.12]
[1746457629131,0.2748531,93746.0,93745.0,0.12]
[1746457629322,0.0615,93746.0,93745.0,0.2133553]
[1746457629530,0.06933645,93746.0,93745.0,0.2133553]
[1746457629729,0.07233645,93746.0,93745.0,0.2133553]
[1746457630128,0.07233645,93746.0,93745.0,0.3333553]
[1746457630435,0.003,93746.0,93745.0,0.7250553]
[1746457630629,0.003,93746.0,93745.0,0.83172729]
[1746457631525,0.002,93747.0,93746.0,0.2133531]
[1746457631730,0.002,93747.0,93746.0,0.38562509]
[1746457632340,0.0627,93759.0,93758.0,0.2133257]
[1746457633131,0.0627,93759.0,93758.0,0.3989257]
[1746457634052,0.0627,93759.0,93758.0,0.3663257]
[1746457634255,0.1627,93759.0,93758.0,0.3333257]
[1746457634550,0.1948,93759.0,93758.0,0.3333257]
[1746457634742,0.0948,93759.0,93758.0,0.3333257]
[1746457635249,0.1998,93759.0,93758.0,0.3333257]
[1746457635449,0.4131235,93759.0,93758.0,0.12]
[1746457635750,0.4131235,93759.0,93758.0,0.3333257]
[1746457636251,0.4131235,93759.0,93758.0,0.2133257]
[1746457636439,0.1998,93759.0,93758.0,0.2133257]
[1746457636650,0.1677,93759.0,93758.0,0.2133257]
[1746457637145,0.0364,93759.0,93758.0,0.3333257]
[1746457637547,0.0364,93759.0,93758.0,0.3983257]
[1746457639743,0.067,93759.0,93758.0,0.3983257]
[1746457639939,0.0364,93759.0,93758.0,0.3983257]
[1746457640549,0.005,93759.0,93758.0,0.3983257]
[1746457641544,0.3608,93780.0,93779.0,0.213278]
[1746457642155,0.3608,93780.0,93779.0,0.333278]
[1746457642453,0.3608,93780.0,93747.0,0.4141371]
[1746457642454,0.82408899,93780.0,93747.0,0.4141371]
[1746457642753,0.82408899,93780.0,93732.0,0.3624003]
[1746457642754,0.3608,93753.0,93737.0,0.0328]
[1746457642943,0.213361,93743.0,93742.0,0.2133616]
[1746457643143,0.2133612,93743.0,93741.0,0.213363]
[1746457643451,0.0641,93742.0,93741.0,0.213363]
[1746457643947,0.0641,93742.0,93739.0,0.213367]
[1746457644149,0.0641,93742.0,93741.0,0.2133644]
[1746457644752,0.0641,93742.0,93739.0,0.12]
[1746457644952,0.0641,93742.0,93741.0,0.2133644]
[1746457645354,0.0581,93742.0,93741.0,0.2133644]
[1746457646154,0.0581,93742.0,93741.0,0.3333644]
[1746457646354,0.0611,93742.0,93741.0,0.3393644]
[1746457647648,0.0641,93742.0,93741.0,0.3393644]
[1746457649756,0.0611,93742.0,93741.0,0.3393644]
[1746457649961,0.0641,93742.0,93741.0,0.3393644]
[1746457651450,0.04463567,93742.0,93741.0,0.3393644]
[1746457651657,0.0331,93750.0,93749.0,0.2133462]
[1746457651864,0.22883505,93760.0,93759.0,0.2133235]
[1746457652162,0.0311,93760.0,93759.0,0.2133235]
[1746457653066,0.0311,93760.0,93759.0,0.3333235]
[1746457653363,0.04009229,93760.0,93759.0,0.3634235]
[1746457653563,0.00989229,93760.0,93759.0,0.7262235]
[1746457655667,0.01289229,93760.0,93759.0,0.7262235]
[1746457656769,0.00989229,93760.0,93759.0,0.7082235]
[1746457659060,0.002,93760.0,93759.0,0.7082235]
[1746457659271,0.0328,93780.0,93779.0,0.213278]
[1746457659466,0.07205246,93780.0,93779.0,0.213278]
[1746457660163,0.07205246,93780.0,93779.0,0.395878]
[1746457660773,0.07405246,93780.0,93779.0,0.397878]
[1746457661174,0.07405246,93780.0,93779.0,0.40501651]
[1746457662472,0.04125246,93780.0,93779.0,0.40501651]
[1746457662672,0.01015246,93780.0,93779.0,0.40501651]
[1746457662868,0.0015,93785.0,93784.0,0.2132666]
[1746457663070,0.16164665,93802.0,93792.0,0.053312]
[1746457663369,0.16164665,93802.0,93798.0,0.2132348]
[1746457664276,0.0318,93801.0,93798.0,0.3664348]
[1746457664471,0.00260083,93799.0,93798.0,0.3664348]
[1746457665663,0.00260083,93799.0,93798.0,0.3724348]
[1746457666071,0.00260083,93799.0,93798.0,0.4043348]
[1746457666475,0.0015,93820.0,93804.0,0.0533051]
[1746457666476,0.19923505,93820.0,93804.0,0.0533051]
[1746457666680,0.0303,93819.0,93815.0,0.2131961]
[1746457667064,0.0303,93819.0,93815.0,0.3331961]
[1746457667365,0.00880883,93816.0,93815.0,0.3331961]
[1746457667582,0.001,93816.0,93815.0,0.3331961]
[1746457667873,0.001,93816.0,93815.0,0.3659961]
[1746457668578,0.002,93816.0,93815.0,0.3709961]
[1746457668879,0.002,93816.0,93815.0,0.37803384]
[1746457671584,0.00997847,93816.0,93815.0,0.37803384]
[1746457671778,0.002,93816.0,93815.0,0.37803384]
[1746457672283,0.102,93816.0,93815.0,0.37803384]
[1746457674490,0.11000532,93816.0,93815.0,0.37803384]
[1746457675186,0.102,93816.0,93815.0,0.37803384]
[1746457677682,0.10999733,93816.0,93815.0,0.37803384]
[1746457679385,0.102,93816.0,93815.0,0.37803384]
[1746457680886,0.002,93816.0,93815.0,0.37803384]
[1746457685487,0.002,93816.0,93815.0,0.48462583]
[1746457685693,0.16164665,93845.0,93815.0,0.48462583]
[1746457685694,0.031,93838.0,93831.0,0.2131598]
[1746457686198,0.031,93838.0,93837.0,0.2131461]
[1746457687200,0.031,93838.0,93837.0,0.3331461]
[1746457687397,0.031,93838.0,93837.0,0.3972461]
[1746457687593,0.0313,93845.0,93844.0,0.2131303]
[1746457687792,0.0615,93845.0,93844.0,0.2131303]
[1746457689204,0.28261389,93845.0,93844.0,0.2131303]
[1746457689393,0.06948589,93845.0,93844.0,0.2131303]
[1746457690813,0.06948589,93845.0,93844.0,0.22027655]
[1746457691012,0.07248589,93845.0,93844.0,0.22027655]
[1746457692015,0.1790459,93845.0,93830.0,0.0319]
[1746457692308,0.3608,93835.0,93834.0,0.213153]
[1746457693307,0.4232,93835.0,93834.0,0.213153]
[1746457693814,0.05,93834.0,93833.0,0.2131552]
[1746457694214,0.1124,93834.0,93833.0,0.2131552]
[1746457694808,0.0624,93834.0,93833.0,0.2131552]
[1746457695112,0.0624,93834.0,93833.0,0.5739552]
[1746457695113,0.0304,93834.0,93833.0,0.5739552]
[1746457695317,0.00160006,93847.0,93844.0,0.2131303]
[1746457695507,0.032,93845.0,93844.0,0.2131303]
[1746457696210,0.032,93845.0,93844.0,0.3331303]
[1746457696411,0.03986911,93845.0,93844.0,0.3331303]
[1746457696611,0.07176911,93845.0,93844.0,0.3655303]
[1746457697121,0.07176911,93845.0,93844.0,0.3331303]
[1746457697912,0.07476911,93845.0,93844.0,0.3331303]
[1746457699227,0.07476911,93845.0,93844.0,0.2131303]
[1746457700227,0.07476911,93845.0,93844.0,0.3331303]
[1746457701224,0.17476911,93845.0,93844.0,0.3331303]
[1746457705928,0.1669,93845.0,93844.0,0.3331303]
[1746457709231,0.1669,93845.0,93844.0,0.2131303]
[1746457710824,0.1349,93845.0,93844.0,0.2131303]
[1746457711030,0.103,93845.0,93844.0,0.2131303]
[1746457711327,0.103,93845.0,93844.0,0.3331303]
[1746457711529,0.003,93845.0,93844.0,0.6939303]
[1746457712129,0.003,93845.0,93844.0,0.7618103]
[1746457713131,0.001,93846.0,93845.0,0.213128]
[1746457713432,0.001,93846.0,93845.0,0.275328]
[1746457713823,0.00160006,93847.0,93846.0,0.2131257]
[1746457714018,0.0015,93855.0,93854.0,0.2131075]
[1746457714232,0.0015,93855.0,93854.0,0.5739075]
[1746457715030,0.0015,93855.0,93854.0,0.6348075]
[1746457715224,0.0015,93855.0,93854.0,0.7548075]
[1746457716526,0.0065,93855.0,93854.0,0.7558075]
[1746457717732,0.0015,93855.0,93854.0,0.7548075]
[1746457717925,0.0055,93855.0,93854.0,0.7558075]
[1746457718525,1e-07,93855.0,93854.0,0.7558075]
[1746457719728,1e-07,93855.0,93854.0,0.7548075]
[1746457719926,0.0301,93862.0,93861.0,0.2130916]
[1746457720323,0.0301,93862.0,93861.0,0.3330916]
[1746457720732,0.16245587,93863.0,93862.0,0.2130894]
[1746457720930,0.001,93876.0,93873.0,0.2130644]
[1746457721227,0.001,93876.0,93873.0,0.5738644]
[1746457721627,0.001,93876.0,93873.0,0.6376644]
[1746457722133,0.001,93876.0,93873.0,0.7576644]
[1746457723036,0.001,93876.0,93875.0,0.2130599]
[1746457724133,0.001,93876.0,93875.0,0.3330599]
[1746457727236,0.002,93876.0,93875.0,0.3330599]
[1746457732840,0.00221192,93876.0,93875.0,0.3330599]
[1746457733040,0.00221192,93876.0,93875.0,0.34111464]
[1746457734138,0.00221192,93876.0,93875.0,0.22111464]
[1746457734440,0.10221192,93876.0,93875.0,0.22111464]
[1746457735041,0.10321192,93876.0,93875.0,0.22111464]
[1746457735427,0.00321192,93876.0,93875.0,0.2130599]
[1746457735632,0.10321192,93876.0,93875.0,0.22124973]
[1746457735831,0.00321192,93876.0,93875.0,0.22124973]
[1746457736041,0.00321192,93876.0,93875.0,0.25304973]
[1746457737040,0.10321192,93876.0,93875.0,0.2130599]
[1746457746646,0.10321192,93876.0,93872.0,0.2130657]
[1746457746945,0.0639,93875.0,93874.0,0.2130621]
[1746457747243,0.05,93874.0,93872.0,0.2130645]
[1746457747447,0.05,93874.0,93873.0,0.2130644]
[1746457747647,0.081,93874.0,93873.0,0.2130644]
[1746457747848,0.2130671,93872.0,93870.0,0.2130705]
[1746457748049,0.031,93871.0,93870.0,0.2130705]
[1746457748342,0.598328,93871.0,93844.0,0.3608]
[1746457748538,0.19773505,93864.0,93862.0,0.2130873]
[1746457748738,0.4918,93863.0,93862.0,0.00767161]
[1746457748939,0.4918,93863.0,93850.0,0.0532787]
[1746457748940,0.59834,93863.0,93854.0,0.21470418]
[1746457749139,0.6739053,93855.0,93854.0,0.00159808]
[1746457749342,0.7239053,93855.0,93854.0,0.00159808]
[1746457749543,0.8304533,93855.0,93854.0,0.00159808]
[1746457749743,0.5108,93855.0,93854.0,0.21470558]
[1746457750037,0.6618,93855.0,93854.0,0.21470558]
[1746457750743,0.302,93855.0,93854.0,0.21470558]
[1746457751242,0.182,93855.0,93854.0,0.21470558]
[1746457752646,0.3951053,93855.0,93854.0,0.00159808]
[1746457754449,0.649348,93855.0,93837.0,0.00953993]
[1746457754650,0.2131711,93826.0,93823.0,0.00780173]
[1746457754949,0.2131939,93816.0,93807.0,0.0533032]
[1746457755251,0.3631939,93816.0,93805.0,0.0533045]
[1746457755441,0.3631939,93816.0,93803.0,0.0936]
[1746457755442,0.3631939,93816.0,93804.0,0.2132201]
[1746457755646,0.3631939,93816.0,93803.0,0.0936]
[1746457755845,0.3631939,93816.0,93808.0,0.2132118]
[1746457756048,0.3581939,93816.0,93807.0,0.2132128]
[1746457756248,0.4781939,93816.0,93808.0,0.00785965]
[1746457756449,0.4781939,93816.0,93808.0,0.22107005]
[1746457756748,0.5847859,93816.0,93815.0,0.00506592]
[1746457756944,0.2132234,93803.0,93802.0,0.0015991]
[1746457757252,0.7240234,93803.0,93802.0,0.0015991]
[1746457757554,0.8306314,93803.0,93802.0,0.0015991]
[1746457757847,0.3132484,93792.0,93785.0,0.00106626]
[1746457758039,0.3632484,93792.0,93785.0,0.00106626]
[1746457758244,0.2132621,93786.0,93785.0,0.00106626]
[1746457758439,0.3632621,93786.0,93785.0,0.00874669]
[1746457758640,0.4698901,93786.0,93785.0,0.00874669]
[1746457758846,0.4698901,93786.0,93785.0,0.00106626]
[1746457759054,0.4658901,93786.0,93785.0,0.00106626]
[1746457759250,0.5858901,93786.0,93785.0,0.21433056]
[1746457759447,0.5858901,93786.0,93785.0,0.00106626]
[1746457759648,0.2132666,93784.0,93783.0,0.20433496]
[1746457759844,0.5740666,93784.0,93783.0,0.20433496]
[1746457760041,0.2132984,93770.0,93769.0,0.3608]
[1746457760241,0.313303,93770.0,93769.0,0.2132962]
[1746457760439,0.363303,93770.0,93769.0,0.2132962]
[1746457761156,0.363303,93770.0,93769.0,0.22105875]
[1746457761360,0.213303,93768.0,93761.0,0.2133176]
[1746457761545,0.213303,93768.0,93758.0,0.0635]
[1746457761750,0.213303,93768.0,93758.0,0.1168313]
[1746457762049,0.213303,93768.0,93762.0,0.2133153]
[1746457762255,0.213303,93768.0,93763.0,0.2133135]
[1746457762554,0.213303,93768.0,93760.0,0.2133209]
[1746457762753,0.213303,93768.0,93740.0,0.26984476]
[1746457762754,0.2133303,93756.0,93740.0,0.21650326]
[1746457762958,0.7241303,93756.0,93741.0,0.0311]
[1746457763151,0.8307903,93756.0,93747.0,0.17026784]
[1746457763354,0.8307903,93756.0,93747.0,0.00802331]
[1746457763547,0.83889008,93756.0,93748.0,0.2133482]
[1746457763752,0.83889008,93756.0,93747.0,0.06136081]
[1746457763948,0.86959008,93756.0,93753.0,0.2133356]
[1746457764259,0.86959008,93756.0,93748.0,0.0533369]
[1746457764761,0.76293008,93756.0,93755.0,0.2143992]
[1746457765350,0.5108,93756.0,93755.0,0.2143992]
[1746457765659,0.0533287,93763.0,93762.0,0.2133166]
[1746457765859,0.2336287,93763.0,93762.0,0.2133166]
[1746457766164,0.2133166,93762.0,93761.0,0.2769181]
[1746457766558,0.2436166,93762.0,93761.0,0.2769181]
[1746457767254,0.2436166,93762.0,93761.0,0.1836]
[1746457767754,0.2436166,93762.0,93761.0,0.3969189]
[1746457767953,0.2133166,93762.0,93761.0,0.3969189]
[1746457768455,0.1,93763.0,93762.0,0.2133166]
[1746457768648,0.2633071,93767.0,93766.0,0.2666294]
[1746457769052,0.05,93767.0,93766.0,0.213303]
[1746457769261,0.2633053,93767.0,93766.0,0.333303]
[1746457769558,0.05,93767.0,93766.0,0.333303]
[1746457769764,0.2633053,93767.0,93766.0,0.333303]
[1746457771562,0.2633053,93767.0,93766.0,0.12]
[1746457772263,0.2133303,93756.0,93755.0,0.0342666]
[1746457772562,0.6241303,93756.0,93755.0,0.0010666]
[1746457773167,0.6241303,93756.0,93755.0,0.2143992]
[1746457773367,0.6877303,93756.0,93755.0,0.2143992]
[1746457774468,0.7877303,93756.0,93755.0,0.2143992]
[1746457774971,0.79586084,93756.0,93755.0,0.2143992]
[1746457779076,0.3608,93775.0,93768.0,0.213303]
[1746457779266,0.677433,93769.0,93768.0,0.213303]
[1746457780069,0.677433,93769.0,93768.0,0.276703]
[1746457780368,0.0533287,93763.0,93759.0,0.2666474]
[1746457780570,0.2133189,93761.0,93760.0,0.2438189]
[1746457780874,0.213328,93757.0,93755.0,0.0010666]
[1746457781174,0.2133303,93756.0,93755.0,0.0010666]
[1746457781469,0.2446303,93756.0,93755.0,0.2143992]
[1746457781668,0.2746303,93756.0,93755.0,0.2143992]
[1746457782270,0.2746303,93756.0,93755.0,0.0010666]
[1746457782471,0.28263939,93756.0,93755.0,0.0010666]
[1746457784969,0.38263939,93756.0,93755.0,0.0010666]
[1746457786380,0.38263939,93756.0,93748.0,0.213348]
[1746457786381,0.2133553,93745.0,93744.0,0.2459576]
[1746457786572,0.3633553,93745.0,93744.0,0.2776576]
[1746457787173,0.4288553,93745.0,93744.0,0.3976576]
[1746457787374,0.3633553,93745.0,93744.0,0.4059091]
[1746457788567,0.3633553,93745.0,93744.0,0.12]
[1746457789174,0.2133735,93737.0,93736.0,0.2133755]
[1746457789382,0.3633735,93737.0,93736.0,0.2739755]
[1746457789876,0.4298735,93737.0,93736.0,0.0606]
[1746457790081,0.4298735,93737.0,93736.0,0.1806]
[1746457790777,0.4298735,93737.0,93736.0,0.3939758]
[1746457791185,0.4298735,93737.0,93736.0,0.0606]
[1746457791385,0.2133804,93734.0,93733.0,0.0305]
[1746457791585,0.2133826,93733.0,93732.0,0.0016003]
[1746457791783,0.0533463,93732.0,93720.0,0.00160058]
[1746457791970,0.2134259,93714.0,93713.0,0.0641]
[1746457792174,0.3634259,93714.0,93713.0,0.1841]
[1746457792374,0.3634259,93714.0,93713.0,0.1526]
[1746457792783,0.4270259,93714.0,93713.0,0.1526]
[1746457792988,0.4270259,93714.0,93713.0,0.3660282]
[1746457793282,0.4270259,93714.0,93713.0,0.2460282]
[1746457793485,0.05,93714.0,93713.0,0.2460282]
[1746457793676,0.57421,93721.0,93720.0,0.2134122]
[1746457793877,0.4608,93721.0,93720.0,0.2667647]
[1746457794077,0.4608,93721.0,93720.0,0.3867647]
[1746457794584,0.492,93721.0,93720.0,0.3978122]
[1746457795189,0.75541,93721.0,93720.0,0.2134122]
[1746457797181,0.2134191,93718.0,93717.0,0.2134189]
[1746457797582,0.2270191,93718.0,93717.0,0.2134189]
[1746457798989,0.2770168,93718.0,93717.0,0.2134189]
[1746457799182,0.17030365,93718.0,93717.0,0.2134189]
[1746457799585,0.0636,93718.0,93717.0,0.2134189]
[1746457799778,0.2770168,93718.0,93717.0,0.2134189]
[1746457800181,0.0636,93718.0,93717.0,0.2134189]
[1746457800377,0.1636,93718.0,93717.0,0.2790189]
[1746457800689,0.7216,93721.0,93720.0,0.2134122]
[1746457801191,0.0315,93727.0,93726.0,0.2133986]
[1746457801592,0.19773505,93740.0,93739.0,0.213369]
[1746457801782,0.2445667,93740.0,93739.0,0.213369]
[1746457802177,0.2445667,93740.0,93739.0,0.333369]
[1746457802394,0.2445667,93740.0,93739.0,0.12]
[1746457802585,0.2445667,93740.0,93739.0,0.333369]
[1746457802984,0.3512467,93740.0,93739.0,0.333369]
[1746457803292,0.3512467,93740.0,93734.0,0.0302]
[1746457803293,0.2133781,93735.0,93734.0,0.2435804]
[1746457803589,0.3633781,93735.0,93734.0,0.22194662]
[1746457803976,0.3945781,93735.0,93734.0,0.22194662]
[1746457804994,0.1812,93735.0,93734.0,0.22194662]
[1746457805284,0.1812,93735.0,93734.0,0.34194662]
[1746457805489,0.3945781,93735.0,93734.0,0.34194662]
[1746457805691,0.1812,93735.0,93734.0,0.34194662]
[1746457805897,0.3945781,93735.0,93734.0,0.34194662]
[1746457806084,0.1812,93735.0,93734.0,0.34194662]
[1746457807196,0.3945781,93735.0,93734.0,0.34194662]
[1746457807495,0.1812,93735.0,93734.0,0.34194662]
[1746457808895,0.3945781,93735.0,93734.0,0.34194662]
[1746457809794,0.1812,93735.0,93734.0,0.34194662]
[1746457810480,0.3633781,93735.0,93734.0,0.34194662]
[1746457810886,0.15,93735.0,93734.0,0.34194662]
[1746457811088,0.3633781,93735.0,93734.0,0.34194662]
[1746457811596,0.5012621,93735.0,93734.0,0.02280267]
[1746457811900,0.9992464,93735.0,93734.0,0.02280267]
[1746457812094,1.1519464,93735.0,93734.0,0.02280267]
[1746457812299,0.2134145,93719.0,93718.0,0.3201198]
[1746457812596,0.7242145,93719.0,93718.0,0.3201198]
[1746457813093,0.7242145,93719.0,93718.0,0.4401198]
[1746457813297,0.7860145,93719.0,93718.0,0.12]
[1746457813684,0.7860145,93719.0,93718.0,0.3334168]
[1746457814194,0.7860145,93719.0,93718.0,0.2134168]
[1746457815392,0.7860145,93719.0,93578.0,0.12]
[1746457815393,0.0533555,93716.0,93700.0,0.158364]
[1746457815686,0.7242435,93708.0,93707.0,0.2134418]
[1746457817002,0.7564396,93708.0,93707.0,0.2445418]
[1746457817200,0.7564396,93708.0,93707.0,0.0311]
[1746457817402,0.7564396,93708.0,93707.0,0.2445418]
[1746457817901,0.7564396,93708.0,93707.0,0.0311]
[1746457818102,0.7564396,93708.0,93705.0,0.053361]
[1746457818103,0.0533623,93704.0,93675.0,0.3608]
[1746457818397,0.0533623,93704.0,93660.0,0.21650326]
[1746457818398,0.2134669,93696.0,93681.0,0.0533751]
[1746457818700,0.3634669,93696.0,93689.0,0.0533703]
[1746457818890,0.25671504,93696.0,93695.0,0.21453649]
[1746457819304,0.1822,93696.0,93695.0,0.21453649]
[1746457819605,0.3956669,93696.0,93695.0,0.21453649]
[1746457819804,0.3956669,93696.0,93695.0,0.27713649]
[1746457820403,0.1822,93696.0,93695.0,0.27713649]
[1746457820604,0.1,93696.0,93695.0,0.27713649]
[1746457821291,0.3134669,93696.0,93695.0,0.39713649]
[1746457821507,0.1,93696.0,93695.0,0.39713649]
[1746457822406,0.3134669,93696.0,93695.0,0.39713649]
[1746457822604,0.3451669,93696.0,93695.0,0.39713649]
[1746457822795,0.1317,93696.0,93695.0,0.39713649]
[1746457823001,0.1,93696.0,93695.0,0.39713649]
[1746457829806,0.3134669,93696.0,93695.0,0.39713649]
[1746457830008,0.1,93696.0,93695.0,0.39713649]
[1746457830707,0.3134669,93696.0,93695.0,0.39713649]
[1746457831405,0.1,93696.0,93695.0,0.39713649]
[1746457836210,0.1304,93696.0,93695.0,0.39713649]
[1746457837113,0.1304,93696.0,93695.0,0.27713649]
[1746457838516,0.3438669,93696.0,93695.0,0.00106729]
[1746457838714,0.50059561,93696.0,93695.0,0.00106729]
[1746457838910,0.53159561,93696.0,93695.0,0.00106729]
[1746457839115,0.65159561,93696.0,93695.0,0.00106729]
[1746457839318,0.65159561,93696.0,93695.0,0.21453649]
[1746457839508,0.5448669,93696.0,93695.0,0.00106729]
[1746457839815,0.5448669,93696.0,93695.0,0.21453649]
[1746457840217,0.4248669,93696.0,93695.0,0.21453649]
[1746457841015,0.2114,93696.0,93695.0,0.21453649]
[1746457841318,0.4248669,93696.0,93695.0,0.21453649]
[1746457842315,0.0804,93696.0,93695.0,0.21453649]
[1746457842619,0.3938669,93696.0,93695.0,0.21453649]
[1746457843217,0.1804,93696.0,93695.0,0.21453649]
[1746457843407,0.1304,93696.0,93695.0,0.24683649]